Cogmind - Beta 14 @@@ ROGUE MODE // 2024.09.22 @ 17:04:35 Player: siona Result: Destroyed by S-10 Pest with Light Assault Rifle Performance ------------- Evolutions (0) 0 Regions Visited (1) 200 Robots Destroyed (20) 100 Value Destroyed (341) 341 Prototype IDs (0) 0 Alien Tech Used (0) 0 Bonus (0) 0 TOTAL SCORE: 641 Bonus ------- None Cogmind --------- Core Integrity 0/250 Matter 300/300 Energy 250/250 System Corruption 1% Temperature Cool (0) Movement Walking (260) Ox2 Location -10/Materials Parts ------- > --- POWER (1) -------- Ion Engine > --- PROPULSION (2) --- Aluminum Leg > --- UTILITY (2) ------ Large Storage Unit > --- WEAPON (2) ------- Mining Claw Mining Claw > --- INVENTORY (15) --- Ion Engine Light Ion Engine Aluminum Leg Flight Unit High-capacity Matter Pod (99) Visual Processing Unit Power Shielding Hacking Suite Hacking Suite Mining Claw Mining Claw Peak State ------------ > --- POWER ------------ Ion Engine > --- PROPULSION ------- Light Treads Light Treads > --- UTILITY ---------- Small Storage Unit Power Shielding > --- WEAPON ----------- Particle Gun Light Cannon > --- INVENTORY -------- Ion Engine Aluminum Leg Aluminum Leg EM Pulse Gun EM Pulse Gun Light Assault Rifle [Rating: 8] Favorites ----------- Power Ion Engine Engine Ion Engine Propulsion Light Treads Treads Light Treads Leg Aluminum Leg Utility Structural Scanner Device Structural Scanner Storage Large Storage Unit Protection Power Shielding Weapon Mining Claw Energy Gun EM Pulse Gun Ballistic Gun Light Assault Rifle Ballistic Cannon Light Cannon Slashing Weapon Mining Claw Build | -11 -10 ------- Run | Yrd Mat Slots Evolved . | . . Power . | . . Propulsion . | . . Utility . | . . Weapon . | . . Parts Attached 16 | 6 10 Power 2 | 1 1 Engine 2 | 1 1 Core . | . . Reactor . | . . Propulsion 3 | 2 1 Treads 2 | 2 . Leg 1 | . 1 Wheel . | . . Hover . | . . Flight . | . . Utility 4 | 1 3 Device 1 | . 1 Storage 2 | 1 1 Processor . | . . Hackware . | . . Protection 1 | . 1 Artifact . | . . Weapon 7 | 2 5 Energy Gun 2 | 1 1 Energy Cannon . | . . Ballistic Gun 2 | 1 1 Ballistic Cannon 1 | . 1 Launcher . | . . Special Weapon . | . . Impact Weapon . | . . Slashing Weapon 2 | . 2 Piercing Weapon . | . . Special Melee Weapon . | . . Unidentified Prototypes . | . . Parts Lost 4 | . 4 Power 1 | . 1 Propulsion 2 | . 2 Utility 1 | . 1 Weapon . | . . Highest Loss Streak 3 | . 3 To Critical Strikes . | . . Average Slot Usage (%) 92 | . 92 Engine 7 | . 7 Treads 27 | . 27 Device 9 | . 9 Storage 14 | . 14 Protection 3 | . 3 Ballistic Gun 3 | . 3 Ballistic Cannon 3 | . 3 Slashing Weapon 19 | . 19 Peak Build Rating 8 | 6 8 Average Rating 6 | 4 7 On Entrance 3 | . 6 Naked Turns . | . . Heaviest Build 30 | 13 30 Greatest Support 40 | 40 40 Greatest Overweight (x) 2 | . 2 Average Overweight (x) . | . . Largest Inventory Capacity 15 | 8 15 Average Capacity 11 | 7 11 Most Carried 12 | 4 12 Average Carried 8 | 2 8 Final Capacity 15 | 8 15 Final Carried 11 | 4 11 Class Distribution -------------------- 100% | Mutant Dominant Class ---------------- Mutant | -10/Materials Resources | -11 -10 ----------- Run | Yrd Mat Matter Collected 625 | 145 480 Remotely . | . . Salvage Created 562 | . 562 Parts 36 | . 36 Haulers Intercepted . | . . Recyclers Shooed . | . . Parts Field Recycled . | . . Retrieved Matter . | . . Parts Self-Destructed . | . . Prevented . | . . Kills | -11 -10 ------- Run | Yrd Mat Combat Hostiles Destroyed 10 | . 10 Melee 6 | . 6 Cannons 4 | . 4 Classes Destroyed 7 | . 7 Worker 3 | . 3 Builder 1 | . 1 Recycler 2 | . 2 Operator 2 | . 2 Watcher 2 | . 2 Swarmer 4 | . 4 Grunt 6 | . 6 Best Kill Streak 7 | . 7 Combat Bots Only 4 | . 4 Max Kills in Single Turn 1 | . 1 Gunslinging . | . . Exploded . | . . Melee 1 | . 1 Uniques/NPCs Destroyed . | . . Combat | -11 -10 -------- Run | Yrd Mat Hostile Shots Fired 126 | . 126 Missed 32 | . 32 Damage Taken 914 | . 914 Core 254 | . 254 Absorbed by Shields . | . . Redirected to Shielding 6 | . 6 Core Remaining (%) 100 | 100 . Volleys Fired 34 | . 34 Largest 2 | . 2 Hottest 100 | . 100 Shots Fired 67 | . 67 Gun 34 | . 34 Cannon 33 | . 33 Launcher . | . . Special . | . . Kinetic 52 | . 52 Thermal 15 | . 15 Explosive . | . . Electromagnetic . | . . Robot Hit Streak 7 | . 7 Robot Miss Streak 3 | . 3 Penetration Max . | . . Secondary Targets . | . . Shots Hit Robots 63 | . 63 Core Hits 23 | . 23 Critical Kills . | . . Critical Parts Destroyed . | . . Critical Strikes 1 | . 1 Blast 1 | . 1 Melee Attacks 41 | . 41 Impact . | . . Slashing 41 | . 41 Piercing . | . . Sneak Attacks 5 | . 5 Combat Hostiles . | . . Follow-up Attacks 3 | . 3 Damage Inflicted 1254 | . 1254 Guns 183 | . 183 Cannons 297 | . 297 Explosions . | . . Melee 774 | . 774 Ramming . | . . Kinetic 389 | . 389 Thermal 91 | . 91 Explosive . | . . Electromagnetic . | . . Impact . | . . Slashing 774 | . 774 Piercing . | . . Highest Corruption 1 | . 1 Average Corruption 1 | . 1 Corruption Purged . | . . Corruption Blocked . | . . Effects 4 | . 4 Matter Fused 3 | . 3 Data Loss (minor) 1 | . 1 Overload Shots . | . . Overflow Damage 116 | . 116 Projectiles . | . . Explosions . | . . Melee 116 | . 116 Knockbacks 2 | . 2 Impact . | . . Kinetic 2 | . 2 Secondary . | . . Self-Inflicted Damage . | . . Shots . | . . Rammed . | . . Targets Rammed . | . . Kicked . | . . Crushed . | . . Highest Temperature 396 | . 396 Average Temperature 129 | . 129 Received Heat Transfer 213 | . 213 Effects 3 | . 3 Shutdowns 2 | . 2 Matter Decay 1 | . 1 Siege Activations . | . . Robots Corrupted . | . . Combat Hostiles . | . . Parts Fried . | . . Impact Corruptions . | . . Robots Melted . | . . Combat Hostiles . | . . Parts Melted . | . . Heat Transferred 222 | . 222 Parts Sabotaged . | . . Parts Stolen . | . . Parts Stripped . | . . Power Chain Reactions . | . . Alert | -11 -10 ------- Run | Yrd Mat Peak Influence 186 | . 186 Initial . | . . Average 57 | . 62 Maximum Alert Level . | . . Low Security (%) 100 | 100 100 Level 1 . | . . Level 2 . | . . Level 3 . | . . Level 4 . | . . Level 5 . | . . High Security . | . . Max Security . | . . Squads Dispatched 4 | . 4 Investigation 2 | . 2 Extermination . | . . Reinforcement 2 | . 2 Assault . | . . Garrison . | . . Intercept . | . . Searches Triggered . | . . Construction Impeded . | . . Haulers Reinforced . | . . Active Scanning Responses . | . . Cargo Convoy Interrupts . | . . Stealth | -11 -10 --------- Run | Yrd Mat Distress Signals 1 | . 1 Communications Jammed . | . . Distress Signals . | . . Times Spotted 27 | . 27 Peak Tracking Total 6 | . 6 Tactical Retreats 4 | . 4 Traps | -11 -10 ------- Run | Yrd Mat Traps Triggered 4 | . 4 Indirectly . | . . Trap Hack Attempts . | . . Triggered . | . . Disarmed . | . . Reprogrammed . | . . Reused . | . . Traps Extracted . | . . Installed . | . . Triggered . | . . Machines | -11 -10 ---------- Run | Yrd Mat Machines Disabled . | . . Max in Single Turn . | . . Machines Repaired . | . . Machines Dismantled . | . . Machines Sabotaged . | . . Overloaded Fab Kills . | . . Hacking | -11 -10 --------- Run | Yrd Mat Machines Accessed . | . . Terminals . | . . Fabricators . | . . Repair Stations . | . . Recycling Units . | . . Scanalyzers . | . . Garrison Access . | . . Total Hacks . | . . Successful . | . . Failed . | . . Catastrophic . | . . Database Lockouts . | . . Manual . | . . Terminals . | . . Fabricators . | . . Repair Stations . | . . Recycling Units . | . . Scanalyzers . | . . Garrison Access . | . . Terminal Hacks . | . . Fabricator Hacks . | . . Repair Station Hacks . | . . Recycling Unit Hacks . | . . Scanalyzer . | . . Garrison Access Hacks . | . . Unauthorized Hacks . | . . Terminals . | . . Fabricators . | . . Repair Stations . | . . Recycling Units . | . . Scanalyzers . | . . Garrison Access . | . . Data Cores Recovered . | . . Used . | . . Hacking Detections . | . . Full Trace Events . | . . Feedback Events . | . . Feedback Blocked . | . . Robot Schematics Acquired . | . . Robots Built . | . . Authchips . | . . Time . | . . Total Robot Build Rating . | . . Part Schematics Acquired . | . . Parts Built . | . . Authchips . | . . Time . | . . Total Part Build Rating . | . . Parts Repaired . | . . Time . | . . Parts Recycled . | . . Recycled Matter . | . . Retrieved Matter . | . . Retrieved Components . | . . Parts Scanalyzed . | . . Part Schematics Acquired . | . . Parts Damaged . | . . Bothacking | -11 -10 ------------ Run | Yrd Mat Used RIF Installer . | . . Robots Hacked . | . . Non-combat . | . . Combat . | . . Robot Hacks Applied . | . . Relay Couplers Released . | . . Fabnet Peak Effective % . | . . Robots Rewired . | . . Allies Hacked . | . . Hacks Repelled . | . . Allies | -11 -10 -------- Run | Yrd Mat Total Allies . | . . Largest Group . | . . Highest-Rated Group . | . . Highest-Rated Ally . | . . Total Orders . | . . Ally Attacks . | . . Total Damage . | . . Kills . | . . Allies Corrupted . | . . Allies Melted . | . . Intel | -11 -10 ------- Run | Yrd Mat Robot Analysis Total . | . . Derelict Logs Recovered . | . . Drone Launches . | . . Drone Recoveries . | . . Exploration | -11 -10 ------------- Run | Yrd Mat Turns Passed 1465 | 112 1353 Spaces Moved 747 | 68 679 Core 8 | 8 . Treads 734 | 60 674 Legs 5 | . 5 Wheels . | . . Hover . | . . Flight . | . . Fastest Speed 50 | 50 160 Average Speed 159 | 147 160 Slowest Speed 260 | 160 260 Overloaded Moves . | . . Propulsion Burnouts . | . . Robots Hopped . | . . Cave-ins Triggered . | . . Exploration Rate (%) 44 | 4 84 Regions Visited 1 Branch Regions . Pre-discovered Areas . | . . Known Exits Taken . | . . Unknown Exits Taken 1 | 1 . Scrap Searched . | . . Spaces Dug . | . . Terrain Destroyed . | . . Melee . | . . Projectile . | . . AOE . | . . Terrain Rammed . | . . Walls Destroyed . | . . Machines Disabled . | . . Actions | -11 -10 --------- Run | Yrd Mat Total 880 | 78 802 Wait 22 | . 22 Move 746 | 67 679 Hop . | . . Pick Up 16 | 5 11 Fast Attach 9 | 5 4 Attach 3 | 1 2 Detach 1 | . 1 Swap 4 | . 4 Drop 8 | . 8 Fire 34 | . 34 Melee 37 | . 37 Ram . | . . Kick . | . . Crush . | . . Escape Stasis . | . . Rewire . | . . Trap . | . . Miscellaneous . | . . Route ------- -11/Scrapyard -10/Materials (discovered 4 exits: [*Mat x2] / [*Min x2]) History --------- Turn | Location | Event 6 | -11/Scrapyard | Discovered new exit (range 14) 113 | -11/Scrapyard | Entered Materials 304 | -10/Materials | Build established: Mutant 400 | -10/Materials | Discovered new exit (range 7) 864 | -10/Materials | Discovered new exit (range 7) 953 | -10/Materials | Discovered new exit (range 15) 1259 | -10/Materials | Discovered new exit (range 8) 1421 | -10/Materials | Core integrity fell below 50% 1445 | -10/Materials | Core integrity fell below 20% 1466 | -10/Materials | Destroyed by S-10 Pest with Light Assault Rifle Last Messages --------------- 01366_ Destroyed Hover Unit. 01393_ Triggered Alarm Trap. 01393_ An alarm sounds. 01393_ ALERT: Alarm triggered, dispatching investigation squad. 01394_ Sneak attack on O-16 Technician. 01394_ Destroyed Lgt. Ion Engine. 01394_ O-16 Technician destroyed. 01399_ Acquired Hacking Suite. 01400_ Acquired 14 matter. 01411_ U-05 Engineer lays Concrete. 01426_ Lgt. Treads destroyed. 01433_ S-10 Pest destroyed. 01441_ Lgt. Treads destroyed. 01444_ G-34 Mercenary Ion Engine ripped off. 01448_ Structural Scanner destroyed. 01450_ System corrupted: Matter fused (-9). 01456_ G-34 Mercenary destroyed. 01457_ Acquired 35 matter. 01460_ K-01 Serf collects debris. Map ----- +----------------------------------------------------+ | ??T # # ##? | | ????? """ +^ + % ##? | | ????? """ # # !! ! ## | | ????? """ # #* %= ## | | ??]! # # [ % % ## | | # # # **=%= ## | | ? ? # # =!! ## | | ?#######?### !%####+########### | | ????????? ## #### ## # | | ??????"?? # ### ## T # | | ????? """ # = % %#! # | | ????? """ + % %+[ [ # | | ? # =# ][ ! # | | ????????? # ## # [ [ # | | ????????? ####+### # ! # | | # ## ## # # | | ############ ## # # | | ## # ## ########## | | ## ] # ## ########## | | ## # ## ##??????## | | ## !# ## ##???????? | | ## # ## ###??????? | | ## =% # ## ###??????? | | ####s####+####+## ##??????? | | ?###==k s u ##??????? | | ??##!k@ ######### | | ??## ######### | | ??## #### | | ??## ######### | | ??## + """" | | ??## ###### """" | | ??## = ###### """" | | ??######+########+#+###### """" | | ??# # ## """" | | ??????" """ ?? # """## | | ??????" """ ? # """####### | | ??????" """ + """####### | | ???? # ##???## | | ????######/##### ""T"" ##???## | | ???? """ # ##### """"" ##???## | | ??????????????################# | | ??????????????# # ###### | | ?????????????????????????## | | ?????????????????????????## "" | | ?????????????????????????## "T | | ?????????????????????????## "" | | ?????????????????????????## | | ?????????????????????????## """ | | ?????????????????????????## """ | | ?????????????????????????## """ | +----------------------------------------------------+ Best States ------------- Heat Dissipation 25 Energy Generation 10 Energy Capacity 250 Matter Stores 300 Matter Capacity 300 Sight Range 16 Terrain Scan Density 10 Power Shielding 33 Evasion (%) 40 Recoil Reduction 2 Item Schematics ----------------- None Robot Schematics ------------------ None Fabricated ------------ Nothing Alien Tech Used ----------------- None Achievements -------------- None Challenges ------------ None Game ------ Seed SwarmComponentScrap Manual? 0 Play Time 00:13:45 Cumulative 11.9 hours Start 2024.09.22 @ 16:51:57 End 2024.09.22 @ 17:04:35 Sessions 1 Manual Loads 0 Difficulty Rogue Special Mode None Game No. 21 Rogue 20 Adventurer 1 Explorer 0 Win Type - Total 0 Types 0/0/0/0/0/0/0/0/0 Lore% 11 Gallery% 14 Achievement% 16 Wizard Run 0 Options --------- Layout 1 ASCII 0 Keyboard 0 Movement Mouse Keybinds 0 Fullscreen 1 Font 32/SmallcapsGlow Map View 50x35 Zoom Use 0% Tactical HUD 1 Map Filters NONE Filters NONE Steam 1 RUN: 2946e30a-3078-4880-8742-a77b21604450